[Event "*** Titled Tuesday Blitz"]
[Site "Chess.com"]
[Date "2020.10.27"]
[Round "8"]
[White "ajedrezhoy"]
[Black "vova-79"]
[Result "0-1"]
[WhiteElo "2219"]
[BlackElo "2490"]
[TimeControl "180+1"]
[EndTime "11:27:23 PDT"]
[Termination "vova-79 won by resignation"]

1. c4 {[%clk 0:03:00.9]} 1... c6 {[%clk 0:02:58.8]} 2. e4 {[%clk 0:02:57.9]}
2... d5 {[%clk 0:02:59.1]} 3. exd5 {[%clk 0:02:58]} 3... cxd5 {[%clk 0:03:00]}
4. d4 {[%clk 0:02:58.3]} 4... Nf6 {[%clk 0:02:58.4]} 5. Nc3 {[%clk 0:02:58.2]}
5... e6 {[%clk 0:02:58.1]} 6. Nf3 {[%clk 0:02:57.8]} 6... Be7 {[%clk 0:02:56.8]}
7. Bd3 {[%clk 0:02:52.9]} 7... dxc4 {[%clk 0:02:55.2]} 8. Bxc4 {[%clk
0:02:52.6]} 8... O-O {[%clk 0:02:55.6]} 9. O-O {[%clk 0:02:52.4]} 9... Nc6
{[%clk 0:02:56]} 10. Re1 {[%clk 0:02:50.4]} 10... a6 {[%clk 0:02:55.2]} 11. Bg5
{[%clk 0:02:44.6]} 11... b5 {[%clk 0:02:53.4]} 12. Bd3 {[%clk 0:02:44.2]} 12...
Bb7 {[%clk 0:02:48.7]} 13. a3 {[%clk 0:02:38.7]} 13... g6 {[%clk 0:02:46.1]} 14.
Bc2 {[%clk 0:02:28.4]} 14... Rc8 {[%clk 0:02:42.4]} 15. h4 {[%clk 0:02:24.8]}
15... Re8 {[%clk 0:02:35.1]} 16. Qd2 {[%clk 0:02:16.1]} 16... Na5 {[%clk
0:02:25.9]} 17. Ne5 {[%clk 0:02:02.4]} 17... Nc4 {[%clk 0:02:18.2]} 18. Nxc4
{[%clk 0:01:57.4]} 18... Rxc4 {[%clk 0:02:19.1]} 19. Rad1 {[%clk 0:01:55.5]}
19... Nd5 {[%clk 0:02:06.1]} 20. Bb3 {[%clk 0:01:45.7]} 20... Nxc3 {[%clk
0:01:53.7]} 21. bxc3 {[%clk 0:01:44]} 21... Rc8 {[%clk 0:01:43.6]} 22. Bxe7
{[%clk 0:01:28.8]} 22... Rxe7 {[%clk 0:01:32.5]} 23. d5 {[%clk 0:01:27.7]} 23...
exd5 {[%clk 0:01:28]} 24. Rxe7 {[%clk 0:01:23.1]} 24... Qxe7 {[%clk 0:01:26.9]}
25. Bxd5 {[%clk 0:01:22.3]} 25... Bxd5 {[%clk 0:01:24.9]} 26. Qxd5 {[%clk
0:01:21.5]} 26... Qxh4 {[%clk 0:01:18]} 27. Qb7 {[%clk 0:01:19.8]} 27... Rxc3
{[%clk 0:01:13]} 28. Qxa6 {[%clk 0:01:18.3]} 28... Qc4 {[%clk 0:01:08.9]} 29.
Rd8+ {[%clk 0:01:08.7]} 29... Kg7 {[%clk 0:01:07.9]} 30. g3 {[%clk 0:01:06]}
30... Rc1+ {[%clk 0:01:02.2]} 31. Kh2 {[%clk 0:01:05.7]} 31... Qe4 {[%clk
0:00:59.1]} 0-1

[Event "*** Titled Tuesday Blitz"]
[Site "Chess.com"]
[Date "2020.10.27"]
[Round "8"]
[White "Fh2411"]
[Black "SergeyShtyka"]
[Result "1-0"]
[WhiteElo "2524"]
[BlackElo "2341"]
[TimeControl "180+1"]
[EndTime "11:27:25 PDT"]
[Termination "Fh2411 won by resignation"]

1. d4 {[%clk 0:02:31.8]} 1... c5 {[%clk 0:02:58.6]} 2. Nf3 {[%clk 0:02:32.7]}
2... cxd4 {[%clk 0:02:56.8]} 3. Nxd4 {[%clk 0:02:33.6]} 3... e5 {[%clk 0:02:57]}
4. Nb3 {[%clk 0:02:33.5]} 4... d5 {[%clk 0:02:56.7]} 5. g3 {[%clk 0:02:32.1]}
5... Nf6 {[%clk 0:02:56.8]} 6. Bg2 {[%clk 0:02:32.6]} 6... Be6 {[%clk
0:02:56.6]} 7. O-O {[%clk 0:02:30.2]} 7... Be7 {[%clk 0:02:56.4]} 8. c3 {[%clk
0:02:25]} 8... O-O {[%clk 0:02:56]} 9. Bg5 {[%clk 0:02:25.2]} 9... Nc6 {[%clk
0:02:54.5]} 10. N1d2 {[%clk 0:02:24.2]} 10... h6 {[%clk 0:02:54]} 11. Bxf6
{[%clk 0:02:23.8]} 11... Bxf6 {[%clk 0:02:54.4]} 12. Nc5 {[%clk 0:02:16.5]}
12... Qe7 {[%clk 0:02:49]} 13. Nxe6 {[%clk 0:02:14.2]} 13... Qxe6 {[%clk
0:02:38.4]} 14. Qb3 {[%clk 0:02:09]} 14... Rfd8 {[%clk 0:02:23.7]} 15. Rfd1
{[%clk 0:02:05.7]} 15... e4 {[%clk 0:02:09.5]} 16. Nf1 {[%clk 0:01:59.4]} 16...
Na5 {[%clk 0:02:02]} 17. Qc2 {[%clk 0:01:24.2]} 17... Nc4 {[%clk 0:01:58.2]} 18.
b3 {[%clk 0:01:23.4]} 18... Nb6 {[%clk 0:01:54.3]} 19. Rac1 {[%clk 0:01:20.7]}
19... Rac8 {[%clk 0:01:54.3]} 20. Qd2 {[%clk 0:01:20.7]} 20... Bg5 {[%clk
0:01:48.9]} 21. Ne3 {[%clk 0:01:16.8]} 21... Rc6 {[%clk 0:01:25.9]} 22. h4
{[%clk 0:01:13.2]} 22... Bxe3 {[%clk 0:01:25.5]} 23. Qxe3 {[%clk 0:01:10.2]}
23... Rdc8 {[%clk 0:01:25.6]} 24. c4 {[%clk 0:01:04]} 24... dxc4 {[%clk
0:01:22.5]} 25. Bxe4 {[%clk 0:00:54.8]} 25... R6c7 {[%clk 0:01:20.2]} 26. Qf3
{[%clk 0:00:46.5]} 26... cxb3 {[%clk 0:01:16.9]} 27. Rxc7 {[%clk 0:00:45.6]} 1-0

[Event "*** Titled Tuesday Blitz"]
[Site "Chess.com"]
[Date "2020.10.27"]
[Round "8"]
[White "albano87"]
[Black "gui_borba"]
[Result "1-0"]
[WhiteElo "2321"]
[BlackElo "2442"]
[TimeControl "180+1"]
[EndTime "11:27:28 PDT"]
[Termination "albano87 won by checkmate"]

1. e4 {[%clk 0:02:57.1]} 1... c5 {[%clk 0:03:00.4]} 2. Nf3 {[%clk 0:02:56.8]}
2... e6 {[%clk 0:03:01.3]} 3. d4 {[%clk 0:02:57.2]} 3... cxd4 {[%clk 0:03:02.2]}
4. Nxd4 {[%clk 0:02:58.1]} 4... Nf6 {[%clk 0:03:02.8]} 5. Nc3 {[%clk 0:02:58.1]}
5... d6 {[%clk 0:03:03.2]} 6. Be3 {[%clk 0:02:56.4]} 6... Be7 {[%clk 0:03:01.6]}
7. f3 {[%clk 0:02:54.1]} 7... Nc6 {[%clk 0:03:01.2]} 8. Qd2 {[%clk 0:02:54.2]}
8... O-O {[%clk 0:03:01]} 9. O-O-O {[%clk 0:02:54.1]} 9... a6 {[%clk 0:03:01.4]}
10. Kb1 {[%clk 0:02:54.3]} 10... Nxd4 {[%clk 0:03:00.8]} 11. Bxd4 {[%clk
0:02:54.7]} 11... b5 {[%clk 0:03:01.5]} 12. g4 {[%clk 0:02:54.3]} 12... b4
{[%clk 0:02:57.9]} 13. Ne2 {[%clk 0:02:54.1]} 13... d5 {[%clk 0:02:45.4]} 14. e5
{[%clk 0:02:48.4]} 14... Nd7 {[%clk 0:02:45.3]} 15. f4 {[%clk 0:02:49]} 15... a5
{[%clk 0:02:41.9]} 16. f5 {[%clk 0:02:45.7]} 16... Nc5 {[%clk 0:02:31.8]} 17.
Ng3 {[%clk 0:02:07.5]} 17... Ne4 {[%clk 0:02:01.2]} 18. Qf4 {[%clk 0:01:56.2]}
18... Bg5 {[%clk 0:01:54.3]} 19. Qf3 {[%clk 0:01:51.4]} 19... Nd2+ {[%clk
0:01:48.1]} 20. Rxd2 {[%clk 0:01:50.9]} 20... Bxd2 {[%clk 0:01:49]} 21. f6
{[%clk 0:01:51.4]} 21... g6 {[%clk 0:01:46.5]} 22. Be3 {[%clk 0:01:46]} 22...
Bxe3 {[%clk 0:01:38.5]} 23. Qxe3 {[%clk 0:01:45.2]} 23... Kh8 {[%clk 0:01:38.9]}
24. Qh6 {[%clk 0:01:32.2]} 24... Rg8 {[%clk 0:01:37.6]} 25. h4 {[%clk 0:01:31]}
25... Qb6 {[%clk 0:01:22.6]} 26. h5 {[%clk 0:01:24.3]} 26... Ra7 {[%clk
0:00:52.2]} 27. Bd3 {[%clk 0:01:16.4]} 27... Ba6 {[%clk 0:00:46.3]} 28. Qxh7+
{[%clk 0:01:05.8]} 28... Kxh7 {[%clk 0:00:45.1]} 29. hxg6# {[%clk 0:01:04.2]}
1-0

[Event "*** Titled Tuesday Blitz"]
[Site "Chess.com"]
[Date "2020.10.27"]
[Round "8"]
[White "MrChampion_Coach"]
[Black "TioCridineno"]
[Result "1-0"]
[WhiteElo "2424"]
[BlackElo "2237"]
[TimeControl "180+1"]
[EndTime "11:27:28 PDT"]
[Termination "MrChampion_Coach won by resignation"]

1. d4 {[%clk 0:03:00.9]} 1... Nf6 {[%clk 0:02:59.8]} 2. c4 {[%clk 0:03:00]} 2...
g6 {[%clk 0:03:00.3]} 3. Nc3 {[%clk 0:02:59.4]} 3... Bg7 {[%clk 0:03:00.9]} 4.
e4 {[%clk 0:02:59.5]} 4... d6 {[%clk 0:03:01.5]} 5. f4 {[%clk 0:02:58.2]} 5...
O-O {[%clk 0:03:00.7]} 6. Nf3 {[%clk 0:02:57.9]} 6... Na6 {[%clk 0:02:53.6]} 7.
e5 {[%clk 0:02:42.3]} 7... Ne8 {[%clk 0:02:52.9]} 8. h3 {[%clk 0:02:39.1]} 8...
e6 {[%clk 0:02:48.1]} 9. Be2 {[%clk 0:02:28.7]} 9... f6 {[%clk 0:02:40.7]} 10.
O-O {[%clk 0:02:25]} 10... fxe5 {[%clk 0:02:39.6]} 11. dxe5 {[%clk 0:02:22.5]}
11... Bd7 {[%clk 0:02:31.3]} 12. Ng5 {[%clk 0:02:07.8]} 12... Qe7 {[%clk
0:02:29.4]} 13. Bf3 {[%clk 0:01:54.9]} 13... Bc6 {[%clk 0:02:28.1]} 14. Bxc6
{[%clk 0:01:53.5]} 14... bxc6 {[%clk 0:02:27.8]} 15. Qa4 {[%clk 0:01:46.5]}
15... Nc5 {[%clk 0:02:22.6]} 16. Qxc6 {[%clk 0:01:46]} 16... Rb8 {[%clk
0:02:19]} 17. Be3 {[%clk 0:01:37.6]} 17... Nd3 {[%clk 0:02:16.5]} 18. b3 {[%clk
0:01:21.4]} 18... dxe5 {[%clk 0:02:13.8]} 19. Nxe6 {[%clk 0:01:12]} 19... Rf6
{[%clk 0:02:09.9]} 20. Nd5 {[%clk 0:01:04.1]} 20... Qxe6 {[%clk 0:02:05.2]} 21.
Nxf6+ {[%clk 0:01:04.1]} 21... Qxf6 {[%clk 0:02:05.4]} 22. Qd5+ {[%clk
0:01:04.4]} 22... Kh8 {[%clk 0:02:01.9]} 23. Qxd3 {[%clk 0:01:03.7]} 23... exf4
{[%clk 0:02:02.3]} 24. Rad1 {[%clk 0:00:48.3]} 24... g5 {[%clk 0:01:59.2]} 25.
Bxa7 {[%clk 0:00:45]} 25... Ra8 {[%clk 0:01:58.1]} 26. Qe4 {[%clk 0:00:40.6]}
26... Rxa7 {[%clk 0:01:47.1]} 27. Qxe8+ {[%clk 0:00:40.6]} 27... Bf8 {[%clk
0:01:48]} 28. Rd8 {[%clk 0:00:29.2]} 28... Kg7 {[%clk 0:01:48.1]} 29. Qd7+
{[%clk 0:00:28.3]} 29... Qe7 {[%clk 0:01:38.1]} 30. Qd4+ {[%clk 0:00:26.1]}
30... Kg8 {[%clk 0:01:27.6]} 31. Rxf8+ {[%clk 0:00:25.7]} 1-0

[Event "*** Titled Tuesday Blitz"]
[Site "Chess.com"]
[Date "2020.10.27"]
[Round "8"]
[White "Kobalia"]
[Black "chenxiaoyuer"]
[Result "1-0"]
[WhiteElo "2735"]
[BlackElo "2512"]
[TimeControl "180+1"]
[EndTime "11:27:29 PDT"]
[Termination "Kobalia won by resignation"]

1. d4 {[%clk 0:03:00.9]} 1... Nf6 {[%clk 0:02:58.9]} 2. Nf3 {[%clk 0:03:00.9]}
2... g6 {[%clk 0:02:57.4]} 3. Bg5 {[%clk 0:03:00.6]} 3... Bg7 {[%clk 0:02:56.3]}
4. Nbd2 {[%clk 0:03:00.8]} 4... d5 {[%clk 0:02:55.5]} 5. e3 {[%clk 0:03:00.6]}
5... O-O {[%clk 0:02:54.9]} 6. Be2 {[%clk 0:03:00.8]} 6... c5 {[%clk 0:02:54.9]}
7. c3 {[%clk 0:03:00.9]} 7... Nc6 {[%clk 0:02:50.3]} 8. O-O {[%clk 0:03:01]}
8... Bf5 {[%clk 0:02:37.9]} 9. Nh4 {[%clk 0:02:59.2]} 9... Be6 {[%clk
0:02:35.9]} 10. Nhf3 {[%clk 0:02:58.9]} 10... Rc8 {[%clk 0:02:34]} 11. Re1
{[%clk 0:02:58.9]} 11... c4 {[%clk 0:02:23.1]} 12. Bxf6 {[%clk 0:02:54.4]} 12...
exf6 {[%clk 0:02:17.8]} 13. e4 {[%clk 0:02:54.4]} 13... Ne7 {[%clk 0:02:10.3]}
14. Bf1 {[%clk 0:02:51.5]} 14... dxe4 {[%clk 0:02:01.8]} 15. Nxe4 {[%clk
0:02:51]} 15... f5 {[%clk 0:01:58.5]} 16. Ned2 {[%clk 0:02:50.8]} 16... b5
{[%clk 0:01:50.6]} 17. a4 {[%clk 0:02:49.6]} 17... b4 {[%clk 0:01:48.2]} 18. Ne5
{[%clk 0:02:48.5]} 18... bxc3 {[%clk 0:01:46.5]} 19. bxc3 {[%clk 0:02:48.2]}
19... Bxe5 {[%clk 0:01:41.7]} 20. Rxe5 {[%clk 0:02:47.5]} 20... Nd5 {[%clk
0:01:41.2]} 21. Qc2 {[%clk 0:02:47.2]} 21... Qa5 {[%clk 0:01:36.5]} 22. Bxc4
{[%clk 0:02:34.1]} 22... Qxc3 {[%clk 0:01:15]} 23. Qxc3 {[%clk 0:02:33.9]} 23...
Nxc3 {[%clk 0:01:14.8]} 24. Bxe6 {[%clk 0:02:33.3]} 24... fxe6 {[%clk
0:01:15.7]} 25. Rxe6 {[%clk 0:02:33.6]} 25... Rfe8 {[%clk 0:01:15.4]} 26. Rxe8+
{[%clk 0:02:29]} 26... Rxe8 {[%clk 0:01:16.3]} 27. Nf3 {[%clk 0:02:29.1]} 27...
Rb8 {[%clk 0:01:09.7]} 28. h4 {[%clk 0:02:26.4]} 28... Rb2 {[%clk 0:01:05.8]}
29. a5 {[%clk 0:02:19.5]} 29... Kf7 {[%clk 0:00:57]} 30. Re1 {[%clk 0:02:16.5]}
30... Ne4 {[%clk 0:00:54.4]} 31. Ne5+ {[%clk 0:02:09.6]} 31... Ke6 {[%clk
0:00:51.6]} 32. f3 {[%clk 0:02:09.1]} 32... Kd5 {[%clk 0:00:41.5]} 33. fxe4+
{[%clk 0:02:08.6]} 33... fxe4 {[%clk 0:00:42.4]} 34. Ng4 {[%clk 0:01:40.4]}
34... Kxd4 {[%clk 0:00:38.6]} 35. Rd1+ {[%clk 0:01:40.3]} 35... Kc3 {[%clk
0:00:37.3]} 36. Rd7 {[%clk 0:01:40.2]} 36... h5 {[%clk 0:00:33]} 37. Nf2 {[%clk
0:01:39.8]} 37... Rb1+ {[%clk 0:00:29.4]} 38. Kh2 {[%clk 0:01:39.5]} 38... e3
{[%clk 0:00:28.4]} 39. Rd3+ {[%clk 0:01:38.5]} 1-0

[Event "*** Titled Tuesday Blitz"]
[Site "Chess.com"]
[Date "2020.10.27"]
[Round "8"]
[White "lelya96"]
[Black "Chessmatus"]
[Result "0-1"]
[WhiteElo "2199"]
[BlackElo "2408"]
[TimeControl "180+1"]
[EndTime "11:27:29 PDT"]
[Termination "Chessmatus won by resignation"]

1. e4 {[%clk 0:03:00.9]} 1... c5 {[%clk 0:02:50.9]} 2. Nf3 {[%clk 0:02:59.2]}
2... d6 {[%clk 0:02:49]} 3. d4 {[%clk 0:02:57.9]} 3... cxd4 {[%clk 0:02:49.9]}
4. Nxd4 {[%clk 0:02:53.9]} 4... Nf6 {[%clk 0:02:50.5]} 5. Nc3 {[%clk 0:02:52.6]}
5... a6 {[%clk 0:02:51.1]} 6. Be2 {[%clk 0:02:50.7]} 6... e5 {[%clk 0:02:51.3]}
7. Nb3 {[%clk 0:02:50.2]} 7... Be7 {[%clk 0:02:51.8]} 8. O-O {[%clk 0:02:50.4]}
8... O-O {[%clk 0:02:52.4]} 9. f4 {[%clk 0:02:50.6]} 9... b5 {[%clk 0:02:48.4]}
10. a3 {[%clk 0:02:50]} 10... Bb7 {[%clk 0:02:47.2]} 11. Qd3 {[%clk 0:02:48.6]}
11... Nbd7 {[%clk 0:02:46.3]} 12. Kh1 {[%clk 0:02:46.8]} 12... Rc8 {[%clk
0:02:44.2]} 13. Bf3 {[%clk 0:02:44.5]} 13... exf4 {[%clk 0:02:42.3]} 14. Bxf4
{[%clk 0:02:43.5]} 14... Ne5 {[%clk 0:02:42.9]} 15. Bxe5 {[%clk 0:02:42.7]}
15... dxe5 {[%clk 0:02:43.8]} 16. Rad1 {[%clk 0:02:38.4]} 16... Qxd3 {[%clk
0:02:42.8]} 17. Rxd3 {[%clk 0:02:38.4]} 17... Rfd8 {[%clk 0:02:40.5]} 18. Rfd1
{[%clk 0:02:36.3]} 18... Rxd3 {[%clk 0:02:33]} 19. Rxd3 {[%clk 0:02:34.4]} 19...
g5 {[%clk 0:02:31.6]} 20. h3 {[%clk 0:02:32.6]} 20... h5 {[%clk 0:02:31.4]} 21.
Nd2 {[%clk 0:02:12.7]} 21... g4 {[%clk 0:02:29.5]} 22. hxg4 {[%clk 0:02:12.5]}
22... hxg4 {[%clk 0:02:30.4]} 23. Bd1 {[%clk 0:02:12]} 23... Kf8 {[%clk
0:02:23.8]} 24. Nd5 {[%clk 0:02:06.6]} 24... Nxd5 {[%clk 0:02:22]} 25. exd5
{[%clk 0:02:06.1]} 25... f5 {[%clk 0:02:22.7]} 26. d6 {[%clk 0:01:26.5]} 26...
Bg5 {[%clk 0:02:21.7]} 27. d7 {[%clk 0:01:16]} 27... Rd8 {[%clk 0:02:21.1]} 28.
Nb3 {[%clk 0:01:16]} 28... e4 {[%clk 0:02:07.4]} 29. Rd4 {[%clk 0:00:57]} 29...
Bf6 {[%clk 0:02:03.8]} 30. Rd6 {[%clk 0:00:56.4]} 30... Be5 {[%clk 0:02:02.4]}
31. Rd2 {[%clk 0:00:46.5]} 31... Ke7 {[%clk 0:01:59.3]} 32. Nc5 {[%clk
0:00:45.8]} 32... Bc6 {[%clk 0:01:57.1]} 33. Nxa6 {[%clk 0:00:39.1]} 33... Bf4
{[%clk 0:01:43.1]} 34. Rf2 {[%clk 0:00:31.6]} 34... Be3 {[%clk 0:01:41.8]} 35.
Rxf5 {[%clk 0:00:21.2]} 35... Rh8+ {[%clk 0:01:41.1]} 0-1

[Event "*** Titled Tuesday Blitz"]
[Site "Chess.com"]
[Date "2020.10.27"]
[Round "8"]
[White "nubair1198"]
[Black "Korchmar_Vasiliy"]
[Result "0-1"]
[WhiteElo "2812"]
[BlackElo "2617"]
[TimeControl "180+1"]
[EndTime "11:27:42 PDT"]
[Termination "Korchmar_Vasiliy won by resignation"]

1. d4 {[%clk 0:02:01.1]} 1... Nf6 {[%clk 0:02:58.8]} 2. c4 {[%clk 0:01:54]} 2...
c6 {[%clk 0:02:59.2]} 3. Nf3 {[%clk 0:01:53.3]} 3... d5 {[%clk 0:02:59.7]} 4.
Nc3 {[%clk 0:01:53.8]} 4... a6 {[%clk 0:02:59.7]} 5. a4 {[%clk 0:01:53.5]} 5...
e6 {[%clk 0:02:57.6]} 6. Bg5 {[%clk 0:01:53.8]} 6... a5 {[%clk 0:02:57.3]} 7. e3
{[%clk 0:01:54]} 7... Na6 {[%clk 0:02:57.7]} 8. Qb3 {[%clk 0:01:54.3]} 8... Be7
{[%clk 0:02:57.5]} 9. Be2 {[%clk 0:01:54.4]} 9... O-O {[%clk 0:02:57.6]} 10. O-O
{[%clk 0:01:54.9]} 10... Nb4 {[%clk 0:02:58.2]} 11. Na2 {[%clk 0:01:54.1]} 11...
b6 {[%clk 0:02:56.8]} 12. Nxb4 {[%clk 0:01:53]} 12... axb4 {[%clk 0:02:54.8]}
13. Ne5 {[%clk 0:01:53.4]} 13... Bb7 {[%clk 0:02:51.8]} 14. Rfc1 {[%clk
0:01:53.6]} 14... Ne4 {[%clk 0:02:48]} 15. Bxe7 {[%clk 0:01:52.6]} 15... Qxe7
{[%clk 0:02:48.9]} 16. cxd5 {[%clk 0:01:42.8]} 16... cxd5 {[%clk 0:02:46.9]} 17.
Bd3 {[%clk 0:01:43.3]} 17... Rfc8 {[%clk 0:02:26.7]} 18. h3 {[%clk 0:01:23.2]}
18... f6 {[%clk 0:02:01.9]} 19. Bxe4 {[%clk 0:01:16.7]} 19... dxe4 {[%clk
0:01:51.2]} 20. Nc4 {[%clk 0:00:57.3]} 20... Bd5 {[%clk 0:01:51.2]} 21. Rc2
{[%clk 0:00:57.3]} 21... b5 {[%clk 0:01:49.3]} 22. Nb6 {[%clk 0:00:30.4]} 22...
Bxb3 {[%clk 0:01:49.4]} 23. Rxc8+ {[%clk 0:00:23.7]} 23... Rxc8 {[%clk
0:01:48.3]} 24. Nxc8 {[%clk 0:00:24.6]} 24... Qc7 {[%clk 0:01:46.7]} 25. axb5
{[%clk 0:00:22.4]} 25... Qxc8 {[%clk 0:01:45.4]} 26. b6 {[%clk 0:00:23.3]} 26...
Bd5 {[%clk 0:01:45.9]} 27. Ra7 {[%clk 0:00:21.7]} 27... Qc1+ {[%clk 0:01:43.5]}
28. Kh2 {[%clk 0:00:21.6]} 28... Qxb2 {[%clk 0:01:44.4]} 29. Rd7 {[%clk
0:00:17.1]} 29... Qa2 {[%clk 0:01:34.4]} 30. b7 {[%clk 0:00:08.4]} 30... Bxb7
{[%clk 0:01:33.8]} 31. Rxb7 {[%clk 0:00:09.3]} 31... b3 {[%clk 0:01:34.4]} 32.
Kg3 {[%clk 0:00:09.9]} 32... b2 {[%clk 0:01:34.5]} 33. Rb8+ {[%clk 0:00:10.8]}
33... Kf7 {[%clk 0:01:34.4]} 34. Rb7+ {[%clk 0:00:11.4]} 34... Kg6 {[%clk
0:01:34.3]} 0-1

[Event "*** Titled Tuesday Blitz"]
[Site "Chess.com"]
[Date "2020.10.27"]
[Round "8"]
[White "MarceloPlaya"]
[Black "Evachess2006"]
[Result "1-0"]
[WhiteElo "2274"]
[BlackElo "1645"]
[TimeControl "180+1"]
[EndTime "11:27:42 PDT"]
[Termination "MarceloPlaya won on time"]

1. e4 {[%clk 0:03:00.9]} 1... e5 {[%clk 0:02:46.1]} 2. Nf3 {[%clk 0:02:59]} 2...
Nc6 {[%clk 0:02:45]} 3. d4 {[%clk 0:02:57.7]} 3... exd4 {[%clk 0:02:43.2]} 4.
Bc4 {[%clk 0:02:57.5]} 4... Bc5 {[%clk 0:02:40.3]} 5. Ng5 {[%clk 0:02:56.3]}
5... Ne5 {[%clk 0:02:20.3]} 6. Nxf7 {[%clk 0:02:54.3]} 6... Qf6 {[%clk 0:01:41]}
7. Nxe5 {[%clk 0:02:44.5]} 7... Qxe5 {[%clk 0:01:33.3]} 8. O-O {[%clk
0:02:43.1]} 8... Nf6 {[%clk 0:01:28.9]} 9. f4 {[%clk 0:02:30.6]} 9... Qh5 {[%clk
0:01:22.4]} 10. Qxh5+ {[%clk 0:02:21.6]} 10... Nxh5 {[%clk 0:01:21]} 11. e5
{[%clk 0:02:16.4]} 11... d3+ {[%clk 0:01:13.2]} 12. Kh1 {[%clk 0:02:15.1]} 12...
dxc2 {[%clk 0:01:09.3]} 13. Nc3 {[%clk 0:02:14.1]} 13... d6 {[%clk 0:00:59.1]}
14. Ne4 {[%clk 0:02:09.6]} 14... dxe5 {[%clk 0:00:49.8]} 15. Nxc5 {[%clk
0:02:07.2]} 15... exf4 {[%clk 0:00:44.4]} 16. Bxf4 {[%clk 0:01:48.2]} 16... Rf8
{[%clk 0:00:38.9]} 17. Rae1+ {[%clk 0:01:42.9]} 17... Kd8 {[%clk 0:00:26.2]} 18.
Bxc7+ {[%clk 0:01:41.2]} 18... Kxc7 {[%clk 0:00:21.6]} 19. Rxf8 {[%clk
0:01:40.8]} 19... b6 {[%clk 0:00:14.3]} 20. Nb3 {[%clk 0:01:32.7]} 20... Bb7
{[%clk 0:00:04.9]} 21. Rf7+ {[%clk 0:01:30.6]} 21... Kc6 {[%clk 0:00:03.4]} 22.
Nd4+ {[%clk 0:01:22.8]} 22... Kc5 {[%clk 0:00:02.3]} 23. Nxc2 {[%clk 0:01:18.2]}
1-0

[Event "*** Titled Tuesday Blitz"]
[Site "Chess.com"]
[Date "2020.10.27"]
[Round "8"]
[White "wonderfultime"]
[Black "Flawless_Fighter"]
[Result "1-0"]
[WhiteElo "2922"]
[BlackElo "2610"]
[TimeControl "180+1"]
[EndTime "11:27:47 PDT"]
[Termination "wonderfultime won by checkmate"]

1. d4 {[%clk 0:03:00.9]} 1... Nf6 {[%clk 0:02:59.3]} 2. Nf3 {[%clk 0:03:01.5]}
2... e6 {[%clk 0:02:59.1]} 3. Bf4 {[%clk 0:03:01.9]} 3... c5 {[%clk 0:02:57.2]}
4. c3 {[%clk 0:03:02.2]} 4... Qb6 {[%clk 0:02:56.7]} 5. Qc2 {[%clk 0:03:02.4]}
5... Nc6 {[%clk 0:02:53.7]} 6. e3 {[%clk 0:03:02.8]} 6... d5 {[%clk 0:02:50.6]}
7. Nbd2 {[%clk 0:03:02.5]} 7... Bd7 {[%clk 0:02:49.4]} 8. Bd3 {[%clk 0:03:02.8]}
8... Rc8 {[%clk 0:02:45.5]} 9. Qb1 {[%clk 0:03:03.2]} 9... Be7 {[%clk
0:02:39.9]} 10. O-O {[%clk 0:03:03]} 10... Nh5 {[%clk 0:02:36.3]} 11. Be5 {[%clk
0:03:01.9]} 11... f6 {[%clk 0:02:31.4]} 12. Bg3 {[%clk 0:03:02.4]} 12... Nxg3
{[%clk 0:02:30.6]} 13. hxg3 {[%clk 0:03:03.3]} 13... f5 {[%clk 0:02:29.9]} 14.
a3 {[%clk 0:02:55.4]} 14... c4 {[%clk 0:02:27.6]} 15. Bc2 {[%clk 0:02:55]} 15...
O-O {[%clk 0:02:25.9]} 16. g4 {[%clk 0:02:50.9]} 16... g6 {[%clk 0:02:23.1]} 17.
gxf5 {[%clk 0:02:51.1]} 17... exf5 {[%clk 0:02:21.6]} 18. b3 {[%clk 0:02:49]}
18... cxb3 {[%clk 0:02:14.4]} 19. Bxb3 {[%clk 0:02:49.9]} 19... Be6 {[%clk
0:02:11.3]} 20. Qa2 {[%clk 0:02:43]} 20... Qd8 {[%clk 0:02:01.2]} 21. c4 {[%clk
0:02:38]} 21... Na5 {[%clk 0:01:54]} 22. c5 {[%clk 0:02:28.8]} 22... b6 {[%clk
0:01:47.1]} 23. cxb6 {[%clk 0:02:27.5]} 23... Nxb3 {[%clk 0:01:45]} 24. Qxb3
{[%clk 0:02:22.3]} 24... Qxb6 {[%clk 0:01:45.4]} 25. Qa4 {[%clk 0:02:22.7]}
25... Rc7 {[%clk 0:01:33]} 26. Rab1 {[%clk 0:02:20.8]} 26... Qd6 {[%clk
0:01:31.3]} 27. Rb3 {[%clk 0:02:19.3]} 27... Rfc8 {[%clk 0:01:30.8]} 28. Ne5
{[%clk 0:02:16.1]} 28... Bf6 {[%clk 0:01:27.9]} 29. Ndf3 {[%clk 0:02:15.6]}
29... g5 {[%clk 0:01:18.4]} 30. Nd3 {[%clk 0:02:08.2]} 30... f4 {[%clk 0:00:55]}
31. exf4 {[%clk 0:02:02.9]} 31... gxf4 {[%clk 0:00:53.7]} 32. Nfe5 {[%clk
0:02:03.4]} 32... Rg7 {[%clk 0:00:44.8]} 33. Nxf4 {[%clk 0:01:57.7]} 33... Bf5
{[%clk 0:00:31.1]} 34. Nh5 {[%clk 0:01:54]} 34... Rg5 {[%clk 0:00:24.4]} 35.
Nxf6+ {[%clk 0:01:52.9]} 35... Qxf6 {[%clk 0:00:25.3]} 36. Qxa7 {[%clk
0:01:39.6]} 36... Be4 {[%clk 0:00:20.9]} 37. Rg3 {[%clk 0:01:37.3]} 37... Rc2
{[%clk 0:00:13.7]} 38. Rxg5+ {[%clk 0:01:36.3]} 38... Qxg5 {[%clk 0:00:13.3]}
39. Qf7+ {[%clk 0:01:36.9]} 39... Kh8 {[%clk 0:00:13.5]} 40. Qf8+ {[%clk
0:01:37.8]} 40... Qg8 {[%clk 0:00:13.9]} 41. Nf7# {[%clk 0:01:38.7]} 1-0